[Event "European Rapid Championship 2021"]
[Site "Katowice"]
[Date "2021.12.19"]
[Round "11.6"]
[White "Druckenthaner, Andreas"]
[Black "Mica, Marek"]
[Result "1-0"]
[ECO "B10"]
[WhiteElo "2291"]
[BlackElo "2060"]
[Annotator "NA"]
[PlyCount "109"]
[EventDate "2021.12.18"]
[EventType "swiss"]
[EventCountry "POL"]
[SourceTitle "playchess.com"]
[Source "ChessBase"]
[SourceQuality "1"]
[TimeControl "900+10"]

1. e4 {[%emt 0:00:03]} c6 {[%emt 0:00:02]} 2. d3 {[%emt 0:00:03]} d5 {[%emt 0:
00:03]} 3. Qe2 {[%emt 0:00:02]} dxe4 {[%emt 0:00:36]} 4. dxe4 {[%emt 0:00:02]}
e5 {[%emt 0:00:02]} 5. Nf3 {[%emt 0:00:05]} Qc7 {[%emt 0:00:04]} 6. Nbd2 {
[%emt 0:00:11]} Nf6 {[%emt 0:00:51]} 7. Nc4 {[%emt 0:00:10]} Nbd7 {[%emt 0:00:
03]} 8. Bg5 {[%emt 0:00:13]} b5 {[%emt 0:00:44]} 9. Bxf6 {[%emt 0:00:21]} bxc4
{[%emt 0:01:06]} 10. Bg5 {[%emt 0:00:02]} Nb6 {[%emt 0:00:15]} 11. c3 {[%emt 0:
00:22]} Be6 {[%emt 0:00:10]} 12. Be3 {[%emt 0:01:03]} f6 {[%emt 0:00:09]} 13.
Qc2 {[%emt 0:00:08]} Be7 {[%emt 0:00:53]} 14. Nd2 {[%emt 0:00:41]} c5 {[%emt 0:
00:20]} 15. Nxc4 {[%emt 0:00:25]} O-O {[%emt 0:00:38]} 16. Nd2 {[%emt 0:00:13]}
c4 {[%emt 0:00:33]} 17. Be2 {[%emt 0:00:27]} Bc5 {[%emt 0:00:16]} 18. Bxc5 {
[%emt 0:02:09]} Qxc5 {[%emt 0:00:01]} 19. O-O {[%emt 0:00:10]} a5 {[%emt 0:00:
02]} 20. Rad1 {[%emt 0:00:56]} a4 {[%emt 0:00:17]} 21. a3 {[%emt 0:00:13]} Ra5
{[%emt 0:00:42]} 22. Nf3 {[%emt 0:00:48]} Rb5 {[%emt 0:00:10]} 23. Rd2 {
[%emt 0:00:43]} Kf7 {[%emt 0:00:11]} 24. Rfd1 {[%emt 0:00:36]} Ke7 {[%emt 0:00:
06]} 25. Nh4 {[%emt 0:01:57]} g6 {[%emt 0:02:42]} 26. h3 {[%emt 0:00:05]} Rb8 {
[%emt 0:00:35]} 27. Bg4 {[%emt 0:00:22]} Bf7 {[%emt 0:00:04]} 28. Qc1 {[%emt 0:
00:52]} Qc6 {[%emt 0:01:19]} 29. Re2 {[%emt 0:00:40]} h5 {[%emt 0:00:37]} 30.
Bf3 {[%emt 0:00:27]} Nd7 {[%emt 0:00:23]} 31. Qh6 {[%emt 0:00:38]} Nf8 {
[%emt 0:02:27]} 32. Bxh5 {[%emt 0:00:29]} Rxb2 {[%emt 0:00:30]} 33. Rxb2 {
[%emt 0:00:15]} Rxb2 {[%emt 0:00:04]} 34. Bxg6 {[%emt 0:00:25]} Nxg6 {[%emt 0:
00:47]} 35. Nxg6+ {[%emt 0:00:47]} Bxg6 {[%emt 0:00:48]} 36. Qxg6 {[%emt 0:00:
03]} Rb3 {[%emt 0:00:13]} 37. Qh7+ {[%emt 0:01:08]} Ke6 {[%emt 0:00:12]} 38.
Qg8+ {[%emt 0:00:08]} Ke7 {[%emt 0:00:12]} 39. Rd8 {[%emt 0:00:26]} Rxc3 {
[%emt 0:01:00]} 40. Qf8+ {[%emt 0:00:14]} Ke6 {[%emt 0:00:06]} 41. Re8+ {
[%emt 0:00:04]} Qxe8 {[%emt 0:00:45]} 42. Qxe8+ {[%emt 0:00:02]} Kd6 {[%emt 0:
00:02]} 43. Qxa4 {[%emt 0:00:34]} Rc1+ {[%emt 0:00:02]} 44. Kh2 {[%emt 0:00:01]
} c3 {[%emt 0:00:08]} 45. Qb4+ {[%emt 0:00:15]} Kc6 {[%emt 0:00:15]} 46. a4 {
[%emt 0:00:17]} f5 {[%emt 0:00:37]} 47. exf5 {[%emt 0:00:07]} Kd5 {[%emt 0:00:
13]} 48. a5 {[%emt 0:00:29]} e4 {[%emt 0:00:15]} 49. a6 {[%emt 0:00:03]} Ke5 {
[%emt 0:00:16]} 50. a7 {[%emt 0:00:07]} c2 {[%emt 0:00:13]} 51. Qc5+ {[%emt 0:
00:11]} Kf6 {[%emt 0:00:25]} 52. a8=Q {[%emt 0:00:06]} e3 {[%emt 0:00:09]} 53.
Qaf8+ {[%emt 0:00:12]} Kg5 {[%emt 0:00:03]} 54. Qxe3+ {[%emt 0:00:03]} Kh5 {
[%emt 0:00:11]} 55. Qfh6# 1-0

[Event "European Rapid Championship 2021"]
[Site "Katowice"]
[Date "2021.12.19"]
[Round "11.7"]
[White "Gumularz, Szymon"]
[Black "Bjerre, Jonas Buhl"]
[Result "0-1"]
[ECO "B52"]
[WhiteElo "2452"]
[BlackElo "2330"]
[Annotator "ChessBase"]
[PlyCount "84"]
[EventDate "2021.12.18"]
[EventType "swiss"]
[EventCountry "POL"]
[SourceTitle "playchess.com"]
[Source "ChessBase"]
[SourceQuality "1"]
[TimeControl "900+10"]

1. e4 {[%emt 0:00:03]} c5 {[%emt 0:00:01]} 2. Nf3 {[%emt 0:00:02]} d6 {[%emt 0:
00:01]} 3. Bb5+ {[%emt 0:00:02]} Bd7 {[%emt 0:00:01]} 4. Bxd7+ {[%emt 0:00:06]}
Nxd7 {[%emt 0:00:02]} 5. O-O {[%emt 0:00:16]} Ngf6 {[%emt 0:00:01]} 6. Re1 {
[%emt 0:00:05]} e6 {[%emt 0:00:04]} 7. d4 {[%emt 0:00:04]} cxd4 {[%emt 0:00:06]
} 8. Nxd4 {[%emt 0:00:03]} Qa5 {[%emt 0:00:33]} 9. b3 {[%emt 0:00:26]} a6 {
[%emt 0:02:25]} 10. Bb2 {[%emt 0:00:15]} Be7 {[%emt 0:00:23]} 11. c4 {[%emt 0:
00:05]} Rc8 {[%emt 0:00:03]} 12. Nc3 {[%emt 0:00:17]} O-O {[%emt 0:00:03]} 13.
Qd2 {[%emt 0:00:22]} Bd8 {[%emt 0:00:09]} 14. Rad1 {[%emt 0:00:17]} Bc7 {
[%emt 0:00:14]} 15. Kh1 {[%emt 0:00:11]} Qh5 {[%emt 0:00:11]} 16. h3 {[%emt 0:
00:16]} Rfd8 {[%emt 0:00:34]} 17. Qe3 {[%emt 0:00:56]} Ba5 {[%emt 0:00:50]} 18.
Nde2 {[%emt 0:00:52]} Qh4 {[%emt 0:01:33]} 19. Kg1 {[%emt 0:02:32]} Nc5 {
[%emt 0:00:29]} 20. Ng3 {[%emt 0:01:20]} b5 {[%emt 0:00:39]} 21. cxb5 {[%emt 0:
04:39]} axb5 {[%emt 0:00:01]} 22. Rd4 {[%emt 0:00:33]} e5 {[%emt 0:01:29]} 23.
Rxd6 {[%emt 0:00:32]} Rxd6 {[%emt 0:01:57]} 24. Nf5 {[%emt 0:00:02]} Rd3 {
[%emt 0:00:49]} 25. Nxh4 {[%emt 0:00:13]} Rxe3 {[%emt 0:00:02]} 26. Rxe3 {
[%emt 0:00:02]} b4 {[%emt 0:00:15]} 27. Nd5 {[%emt 0:00:28]} Nxd5 {[%emt 0:00:
12]} 28. exd5 {[%emt 0:00:02]} f6 {[%emt 0:00:02]} 29. Nf5 {[%emt 0:00:05]} Kf8
{[%emt 0:00:27]} 30. g4 {[%emt 0:01:03]} Rd8 {[%emt 0:00:15]} 31. Re2 {[%emt 0:
03:49]} Rxd5 {[%emt 0:01:12]} 32. Ne3 {[%emt 0:00:10]} Rd8 {[%emt 0:00:06]} 33.
Rc2 {[%emt 0:00:17]} Bb6 {[%emt 0:00:21]} 34. Nc4 {[%emt 0:00:07]} Ba7 {
[%emt 0:00:03]} 35. Bc1 {[%emt 0:00:05]} Rd1+ {[%emt 0:00:13]} 36. Kh2 {
[%emt 0:00:09]} Nd3 {[%emt 0:00:30]} 37. Be3 {[%emt 0:00:01]} Ne1 {[%emt 0:01:
43]} 38. Re2 {[%emt 0:00:01]} Bb8 {[%emt 0:00:16]} 39. h4 {[%emt 0:00:35]} Nf3+
{[%emt 0:01:10]} 40. Kg2 {[%emt 0:00:04]} e4 {[%emt 0:01:28]} 41. Bc5+ {
[%emt 0:00:17]} Kf7 {[%emt 0:00:07]} 42. Ne3 {[%emt 0:00:15]} Nxh4+ {[%emt 0:
00:07]} 0-1

[Event "European Rapid Championship 2021"]
[Site "Katowice"]
[Date "2021.12.19"]
[Round "11.7"]
[White "Kacprzak, Karol"]
[Black "Balacek, Tadeas"]
[Result "1-0"]
[ECO "C12"]
[WhiteElo "2038"]
[BlackElo "2354"]
[Annotator "NA"]
[PlyCount "69"]
[EventDate "2021.12.18"]
[EventType "swiss"]
[EventCountry "POL"]
[SourceTitle "playchess.com"]
[Source "ChessBase"]
[SourceQuality "1"]
[TimeControl "900+10"]

1. e4 {[%emt 0:00:02]} e6 {[%emt 0:00:01]} 2. d4 {[%emt 0:00:02]} d5 {[%emt 0:
00:00]} 3. Nc3 {[%emt 0:00:01]} Nf6 {[%emt 0:00:01]} 4. Bg5 {[%emt 0:00:02]}
Bb4 {[%emt 0:00:02]} 5. e5 {[%emt 0:00:08]} h6 {[%emt 0:00:02]} 6. Bc1 {
[%emt 0:01:30]} Ne4 {[%emt 0:00:03]} 7. Qg4 {[%emt 0:00:29]} g6 {[%emt 0:00:21]
} 8. Bd3 {[%emt 0:01:09]} c5 {[%emt 0:02:32]} 9. dxc5 {[%emt 0:04:03]} h5 {
[%emt 0:01:42]} 10. Qf3 {[%emt 0:01:21]} Qa5 {[%emt 0:01:18]} 11. Bxe4 {
[%emt 0:02:33]} dxe4 {[%emt 0:00:05]} 12. Qe3 {[%emt 0:00:15]} Bd7 {[%emt 0:00:
52]} 13. Nge2 {[%emt 0:00:09]} Bxc5 {[%emt 0:00:04]} 14. Qf4 {[%emt 0:00:23]}
Nc6 {[%emt 0:01:36]} 15. Bd2 {[%emt 0:01:13]} Be7 {[%emt 0:00:28]} 16. Nxe4 {
[%emt 0:00:12]} Qxe5 {[%emt 0:00:16]} 17. Qxe5 {[%emt 0:00:05]} Nxe5 {[%emt 0:
00:02]} 18. Bc3 {[%emt 0:00:01]} f6 {[%emt 0:00:03]} 19. Nf4 {[%emt 0:00:55]}
Bc6 {[%emt 0:02:42]} 20. f3 {[%emt 0:00:10]} Bxe4 {[%emt 0:01:06]} 21. fxe4 {
[%emt 0:00:04]} Bd6 {[%emt 0:00:01]} 22. O-O-O {[%emt 0:01:13]} Nf7 {[%emt 0:
01:45]} 23. Nxe6 {[%emt 0:00:33]} Ke7 {[%emt 0:00:13]} 24. Nd4 {[%emt 0:00:01]}
Bf4+ {[%emt 0:00:23]} 25. Kb1 {[%emt 0:00:02]} Be5 {[%emt 0:00:03]} 26. Nb5 {
[%emt 0:00:24]} Rhd8 {[%emt 0:01:14]} 27. Bxe5 {[%emt 0:00:26]} Nxe5 {[%emt 0:
00:02]} 28. Nc7 {[%emt 0:00:07]} Rxd1+ {[%emt 0:00:28]} 29. Rxd1 {[%emt 0:00:
01]} Rc8 {[%emt 0:00:01]} 30. Nd5+ {[%emt 0:00:04]} Ke6 {[%emt 0:00:01]} 31.
Rf1 {[%emt 0:00:13]} Nd7 {[%emt 0:00:01]} 32. Nf4+ {[%emt 0:00:15]} Ke5 {
[%emt 0:00:20]} 33. Nxg6+ {[%emt 0:00:10]} Kxe4 {[%emt 0:00:02]} 34. Re1+ {
[%emt 0:00:32]} Kd4 {[%emt 0:00:24]} 35. Rd1+ {[%emt 0:00:03]} 1-0

[Event "European Rapid Championship 2021"]
[Site "Katowice"]
[Date "2021.12.19"]
[Round "11.8"]
[White "Sumets, Andrey"]
[Black "Kosakowski, Jakub"]
[Result "1/2-1/2"]
[ECO "E10"]
[WhiteElo "2508"]
[BlackElo "2438"]
[Annotator "ChessBase"]
[PlyCount "44"]
[EventDate "2021.12.18"]
[EventType "swiss"]
[EventCountry "POL"]
[SourceTitle "playchess.com"]
[Source "ChessBase"]
[SourceQuality "1"]
[TimeControl "900+10"]

1. d4 {[%emt 0:00:01]} Nf6 {[%emt 0:00:02]} 2. c4 {[%emt 0:00:01]} e6 {[%emt 0:
00:02]} 3. Nf3 {[%emt 0:00:03]} c5 {[%emt 0:00:03]} 4. d5 {[%emt 0:00:02]} b5 {
[%emt 0:00:02]} 5. dxe6 {[%emt 0:00:26]} fxe6 {[%emt 0:00:01]} 6. cxb5 {
[%emt 0:00:00]} d5 {[%emt 0:00:02]} 7. g3 {[%emt 0:00:03]} a6 {[%emt 0:00:40]}
8. bxa6 {[%emt 0:00:03]} Bxa6 {[%emt 0:00:14]} 9. Bh3 {[%emt 0:00:40]} Bc8 {
[%emt 0:01:53]} 10. O-O {[%emt 0:00:10]} Be7 {[%emt 0:00:03]} 11. Nbd2 {
[%emt 0:01:39]} O-O {[%emt 0:00:46]} 12. e4 {[%emt 0:00:04]} Nc6 {[%emt 0:00:
48]} 13. Re1 {[%emt 0:05:41]} Nxe4 {[%emt 0:01:54]} 14. Nxe4 {[%emt 0:01:10]}
dxe4 {[%emt 0:00:03]} 15. Nd2 {[%emt 0:03:01]} Ne5 {[%emt 0:03:07]} 16. Bg2 {
[%emt 0:00:40]} Nd3 {[%emt 0:00:35]} 17. Rf1 {[%emt 0:01:46]} Nxf2 {[%emt 0:01:
19]} 18. Qe1 {[%emt 0:01:08]} Qd4 {[%emt 0:01:57]} 19. Nb3 {[%emt 0:00:41]}
Nh3+ {[%emt 0:00:20]} 20. Kh1 {[%emt 0:00:00]} Rxf1+ {[%emt 0:00:07]} 21. Qxf1
{[%emt 0:00:09]} Nf2+ {[%emt 0:00:02]} 22. Kg1 {[%emt 0:00:01]} Nh3+ {[%emt 0:
00:02]} 1/2-1/2

[Event "European Rapid Championship 2021"]
[Site "Katowice"]
[Date "2021.12.19"]
[Round "11.8"]
[White "Malek, Jan"]
[Black "Wisniewski, Adrian"]
[Result "1-0"]
[ECO "C15"]
[WhiteElo "2029"]
[BlackElo "2351"]
[Annotator "NA"]
[PlyCount "59"]
[EventDate "2021.12.18"]
[EventType "swiss"]
[EventCountry "POL"]
[SourceTitle "playchess.com"]
[Source "ChessBase"]
[SourceQuality "1"]
[TimeControl "900+10"]

1. e4 {[%emt 0:00:02]} e6 2. d4 {[%emt 0:00:02]} d5 {[%emt 0:00:03]} 3. Nc3 {
[%emt 0:00:01]} Bb4 {[%emt 0:00:03]} 4. exd5 {[%emt 0:00:02]} exd5 {[%emt 0:00:
02]} 5. Bd3 {[%emt 0:00:01]} Ne7 {[%emt 0:00:32]} 6. Nge2 {[%emt 0:00:15]} Nbc6
{[%emt 0:00:10]} 7. O-O {[%emt 0:00:05]} Bg4 {[%emt 0:00:28]} 8. a3 {[%emt 0:
00:24]} Bxc3 {[%emt 0:00:27]} 9. bxc3 {[%emt 0:00:02]} Qd7 {[%emt 0:00:07]} 10.
Rb1 {[%emt 0:00:17]} O-O-O {[%emt 0:00:16]} 11. h3 {[%emt 0:00:09]} Bh5 {
[%emt 0:00:27]} 12. Qd2 {[%emt 0:00:08]} Bg6 {[%emt 0:00:35]} 13. Nf4 {[%emt 0:
00:16]} Na5 {[%emt 0:01:11]} 14. Nxg6 {[%emt 0:00:53]} hxg6 {[%emt 0:00:06]}
15. Qe2 {[%emt 0:00:49]} Nf5 {[%emt 0:01:40]} 16. Rb5 {[%emt 0:00:35]} Rhe8 {
[%emt 0:01:33]} 17. Qf3 {[%emt 0:00:06]} b6 {[%emt 0:00:59]} 18. Bg5 {[%emt 0:
02:17]} c6 {[%emt 0:03:08]} 19. Rxa5 {[%emt 0:00:41]} bxa5 {[%emt 0:01:09]} 20.
Rb1 {[%emt 0:01:15]} Kc7 {[%emt 0:00:50]} 21. c4 {[%emt 0:02:58]} Rb8 {[%emt 0:
03:41]} 22. Bf4+ {[%emt 0:00:04]} Nd6 {[%emt 0:00:00]} 23. Rxb8 {[%emt 0:00:05]
} Kxb8 {[%emt 0:00:03]} 24. c5 {[%emt 0:00:02]} Ka8 {[%emt 0:00:05]} 25. cxd6 {
[%emt 0:00:06]} g5 {[%emt 0:00:05]} 26. Bg3 {[%emt 0:00:04]} f6 {[%emt 0:00:03]
} 27. Bf5 {[%emt 0:00:06]} Qd8 {[%emt 0:00:01]} 28. d7 {[%emt 0:00:04]} Re1+ {
[%emt 0:00:02]} 29. Kh2 {[%emt 0:00:02]} g6 {[%emt 0:00:05]} 30. Qc3 {[%emt 0:
00:14]} 1-0

[Event "European Rapid Championship 2021"]
[Site "Katowice"]
[Date "2021.12.19"]
[Round "11.9"]
[White "Hasterok, Mateusz"]
[Black "Szwed, Jacek"]
[Result "1/2-1/2"]
[ECO "A43"]
[WhiteElo "2132"]
[BlackElo "2372"]
[Annotator "NA"]
[PlyCount "96"]
[EventDate "2021.12.18"]
[EventType "swiss"]
[EventCountry "POL"]
[SourceTitle "playchess.com"]
[Source "ChessBase"]
[SourceQuality "1"]
[TimeControl "900+10"]

1. d4 {[%emt 0:00:02]} c5 {[%emt 0:00:43]} 2. d5 {[%emt 0:00:05]} g6 {[%emt 0:
00:08]} 3. c4 {[%emt 0:00:05]} Bg7 {[%emt 0:00:03]} 4. Nc3 {[%emt 0:00:01]} d6
{[%emt 0:00:01]} 5. e4 {[%emt 0:00:05]} e6 {[%emt 0:00:07]} 6. Be3 {[%emt 0:00:
12]} exd5 {[%emt 0:00:30]} 7. cxd5 {[%emt 0:00:03]} a6 {[%emt 0:00:03]} 8. a4 {
[%emt 0:00:05]} Ne7 {[%emt 0:01:12]} 9. Qd2 {[%emt 0:00:19]} O-O {[%emt 0:00:
27]} 10. h4 {[%emt 0:00:25]} h5 {[%emt 0:00:43]} 11. Nh3 {[%emt 0:00:35]} Bxh3
{[%emt 0:00:49]} 12. Rxh3 {[%emt 0:00:03]} Nd7 {[%emt 0:00:04]} 13. Be2 {
[%emt 0:00:19]} b5 {[%emt 0:01:26]} 14. axb5 {[%emt 0:00:30]} axb5 {[%emt 0:00:
01]} 15. Rxa8 {[%emt 0:00:35]} Qxa8 16. Nxb5 {[%emt 0:00:05]} Rb8 {[%emt 0:00:
28]} 17. Bg5 {[%emt 0:00:47]} Nc8 {[%emt 0:01:15]} 18. Ra3 {[%emt 0:00:13]} Qb7
{[%emt 0:00:15]} 19. f3 {[%emt 0:02:47]} Ne5 {[%emt 0:00:47]} 20. Qa5 {[%emt 0:
00:24]} c4 {[%emt 0:01:07]} 21. b3 {[%emt 0:06:23]} Nd3+ {[%emt 0:07:45]} 22.
Bxd3 {[%emt 0:00:39]} cxd3 {[%emt 0:00:00]} 23. Nc3 {[%emt 0:00:15]} Kh7 {
[%emt 0:00:34]} 24. Bd2 {[%emt 0:00:15]} Qe7 {[%emt 0:00:11]} 25. g3 {[%emt 0:
00:17]} Nb6 {[%emt 0:00:18]} 26. Qa7 {[%emt 0:00:25]} Rb7 {[%emt 0:00:05]} 27.
Qa6 {[%emt 0:00:02]} Rb8 {[%emt 0:00:23]} 28. Qxd3 {[%emt 0:00:09]} Nd7 {
[%emt 0:00:01]} 29. Ra7 {[%emt 0:00:15]} Rxb3 {[%emt 0:00:08]} 30. Qc4 {
[%emt 0:00:11]} Ne5 {[%emt 0:00:16]} 31. Rxe7 {[%emt 0:00:41]} Nxc4 {[%emt 0:
00:01]} 32. Rxf7 {[%emt 0:00:31]} Rb2 {[%emt 0:00:26]} 33. Bc1 {[%emt 0:00:29]}
Rc2 34. Ne2 {[%emt 0:00:08]} Ne5 {[%emt 0:00:17]} 35. Rb7 {[%emt 0:00:26]}
Nxf3+ {[%emt 0:00:09]} 36. Kd1 {[%emt 0:00:01]} Ra2 {[%emt 0:00:06]} 37. Nc3 {
[%emt 0:00:51]} Rg2 {[%emt 0:00:16]} 38. Ne2 {[%emt 0:00:09]} Kg8 {[%emt 0:00:
09]} 39. Rb8+ {[%emt 0:00:24]} Kh7 {[%emt 0:00:01]} 40. Rb3 {[%emt 0:00:31]}
Ne5 {[%emt 0:00:21]} 41. Rb7 {[%emt 0:00:01]} Kg8 {[%emt 0:00:06]} 42. Bf4 {
[%emt 0:00:04]} Rf2 {[%emt 0:00:15]} 43. Ke1 {[%emt 0:00:41]} Nd3+ {[%emt 0:00:
03]} 44. Kd2 {[%emt 0:00:01]} Ne5 {[%emt 0:00:01]} 45. Rb8+ {[%emt 0:00:22]}
Kh7 {[%emt 0:00:03]} 46. Rb7 {[%emt 0:00:01]} Kg8 {[%emt 0:00:01]} 47. Rb8+ {
[%emt 0:00:01]} Kh7 {[%emt 0:00:01]} 48. Rb7 {[%emt 0:00:00]} Kg8 1/2-1/2

[Event "European Rapid Championship 2021"]
[Site "Katowice"]
[Date "2021.12.19"]
[Round "11.10"]
[White "Kulon, Klaudia"]
[Black "Krzywda, Andrzej"]
[Result "1/2-1/2"]
[ECO "A36"]
[WhiteElo "2328"]
[BlackElo "2123"]
[Annotator "NA"]
[PlyCount "79"]
[EventDate "2021.12.18"]
[EventType "swiss"]
[EventCountry "POL"]
[SourceTitle "playchess.com"]
[Source "ChessBase"]
[SourceQuality "1"]
[TimeControl "900+10"]

1. c4 {[%emt 0:00:02]} c5 {[%emt 0:00:01]} 2. g3 {[%emt 0:00:02]} g6 {[%emt 0:
00:02]} 3. Bg2 {[%emt 0:00:02]} Bg7 {[%emt 0:00:02]} 4. Nc3 {[%emt 0:00:01]}
Nc6 {[%emt 0:00:03]} 5. a3 {[%emt 0:00:50]} d6 {[%emt 0:00:30]} 6. Rb1 {
[%emt 0:00:08]} a5 {[%emt 0:00:19]} 7. e3 {[%emt 0:00:13]} e5 {[%emt 0:00:19]}
8. d3 {[%emt 0:00:18]} Nge7 {[%emt 0:00:03]} 9. h3 {[%emt 0:00:09]} O-O {
[%emt 0:00:04]} 10. Nge2 {[%emt 0:00:01]} Rb8 {[%emt 0:00:06]} 11. O-O {
[%emt 0:00:22]} Be6 {[%emt 0:00:15]} 12. Nd5 {[%emt 0:00:42]} b5 {[%emt 0:00:
03]} 13. b3 {[%emt 0:00:24]} Qd7 {[%emt 0:01:06]} 14. Kh2 {[%emt 0:00:02]} bxc4
{[%emt 0:01:15]} 15. dxc4 {[%emt 0:00:03]} a4 {[%emt 0:00:41]} 16. Bd2 {
[%emt 0:02:08]} axb3 {[%emt 0:00:37]} 17. Rxb3 {[%emt 0:00:02]} Qa7 {[%emt 0:
01:07]} 18. Nec3 {[%emt 0:01:07]} Rxb3 {[%emt 0:01:24]} 19. Qxb3 {[%emt 0:00:
02]} Rb8 {[%emt 0:00:03]} 20. Nb5 {[%emt 0:00:31]} Qd7 {[%emt 0:02:06]} 21. a4
{[%emt 0:00:37]} e4 {[%emt 0:01:59]} 22. Bxe4 {[%emt 0:03:10]} Bxh3 {[%emt 0:
00:43]} 23. Rb1 {[%emt 0:00:41]} Bf5 {[%emt 0:01:34]} 24. Nxe7+ {[%emt 0:02:18]
} Nxe7 {[%emt 0:00:04]} 25. Qd3 {[%emt 0:00:18]} h5 {[%emt 0:01:45]} 26. Rd1 {
[%emt 0:00:41]} Bxe4 {[%emt 0:01:30]} 27. Qxe4 {[%emt 0:00:01]} Re8 {[%emt 0:
00:08]} 28. Be1 {[%emt 0:00:38]} Nf5 {[%emt 0:00:14]} 29. Qd5 {[%emt 0:00:14]}
h4 {[%emt 0:00:34]} 30. gxh4 {[%emt 0:02:38]} Be5+ {[%emt 0:00:08]} 31. Kg1 {
[%emt 0:00:19]} Nxh4 {[%emt 0:00:05]} 32. Kf1 {[%emt 0:00:20]} Qg4 {[%emt 0:00:
29]} 33. Bc3 {[%emt 0:00:39]} Nf3 {[%emt 0:00:36]} 34. a5 {[%emt 0:00:20]} Nh2+
{[%emt 0:00:21]} 35. Ke1 {[%emt 0:00:01]} Nf3+ {[%emt 0:00:13]} 36. Kf1 {
[%emt 0:00:01]} Nh2+ {[%emt 0:00:09]} 37. Ke1 {[%emt 0:00:00]} Nf3+ {[%emt 0:
00:17]} 38. Kf1 {[%emt 0:00:01]} Nh2+ {[%emt 0:00:05]} 39. Ke1 Bxc3+ 40. Nxc3
1/2-1/2

[Event "European Rapid Championship 2021"]
[Site "Katowice"]
[Date "2021.12.19"]
[Round "11.10"]
[White "Kowalski, Igor"]
[Black "Stefansson, Hannes"]
[Result "0-1"]
[ECO "A47"]
[WhiteElo "2295"]
[BlackElo "2519"]
[Annotator "ChessBase"]
[PlyCount "66"]
[EventDate "2021.12.18"]
[EventType "swiss"]
[EventCountry "POL"]
[SourceTitle "playchess.com"]
[Source "ChessBase"]
[SourceQuality "1"]
[TimeControl "900+10"]

1. d4 {[%emt 0:00:01]} Nf6 {[%emt 0:00:02]} 2. Nf3 {[%emt 0:00:02]} b6 {
[%emt 0:00:03]} 3. g3 {[%emt 0:00:01]} Bb7 {[%emt 0:00:04]} 4. Bg2 {[%emt 0:00:
02]} c5 {[%emt 0:00:12]} 5. dxc5 {[%emt 0:00:11]} bxc5 {[%emt 0:00:02]} 6. O-O
{[%emt 0:00:02]} g6 {[%emt 0:00:19]} 7. b3 {[%emt 0:00:01]} Bg7 {[%emt 0:00:02]
} 8. Bb2 {[%emt 0:00:02]} O-O {[%emt 0:00:02]} 9. c4 {[%emt 0:00:02]} d6 {
[%emt 0:00:02]} 10. Nc3 {[%emt 0:00:07]} Nbd7 {[%emt 0:00:13]} 11. Qc2 {
[%emt 0:00:05]} Qb6 {[%emt 0:00:19]} 12. Ne1 {[%emt 0:00:32]} Bxg2 {[%emt 0:00:
23]} 13. Nxg2 {[%emt 0:00:02]} e6 {[%emt 0:00:24]} 14. Rad1 {[%emt 0:00:14]}
Rad8 {[%emt 0:00:17]} 15. Rd2 {[%emt 0:02:06]} Qc6 {[%emt 0:00:02]} 16. Rfd1 {
[%emt 0:00:03]} Nb6 {[%emt 0:00:01]} 17. e4 {[%emt 0:01:34]} Rd7 {[%emt 0:00:
02]} 18. a4 {[%emt 0:00:48]} Rfd8 {[%emt 0:00:18]} 19. Ne3 {[%emt 0:00:47]} Na8
{[%emt 0:00:29]} 20. f4 {[%emt 0:02:35]} Nc7 {[%emt 0:00:19]} 21. Kf2 {[%emt 0:
03:52]} Na6 {[%emt 0:00:15]} 22. g4 {[%emt 0:00:50]} Nb4 {[%emt 0:00:07]} 23.
Qb1 {[%emt 0:00:01]} Ne8 {[%emt 0:01:00]} 24. Ne2 {[%emt 0:00:33]} Bxb2 {
[%emt 0:00:09]} 25. Rxb2 {[%emt 0:00:01]} d5 {[%emt 0:00:10]} 26. cxd5 {
[%emt 0:00:55]} exd5 {[%emt 0:00:01]} 27. exd5 {[%emt 0:00:47]} Nxd5 {[%emt 0:
00:02]} 28. Nc4 {[%emt 0:01:47]} Nxf4 {[%emt 0:00:28]} 29. Rxd7 {[%emt 0:00:01]
} Qg2+ {[%emt 0:00:37]} 30. Ke3 {[%emt 0:00:01]} Rxd7 {[%emt 0:00:19]} 31. Kxf4
{[%emt 0:00:10]} Qf2+ {[%emt 0:00:36]} 32. Ke5 {[%emt 0:00:37]} Nf6 {[%emt 0:
01:46]} 33. Nd6 {[%emt 0:01:13]} Re7# 0-1

[Event "European Rapid Championship 2021"]
[Site "Katowice"]
[Date "2021.12.19"]
[Round "11.11"]
[White "Fus, Jakub"]
[Black "Schneider, Ilja"]
[Result "1-0"]
[ECO "C41"]
[WhiteElo "2252"]
[BlackElo "2490"]
[Annotator "ChessBase"]
[PlyCount "73"]
[EventDate "2021.12.18"]
[EventType "swiss"]
[EventCountry "POL"]
[SourceTitle "playchess.com"]
[Source "ChessBase"]
[SourceQuality "1"]
[TimeControl "900+10"]

1. e4 {[%emt 0:00:01]} e5 {[%emt 0:00:02]} 2. Nf3 {[%emt 0:00:02]} d6 {[%emt 0:
00:00]} 3. d4 {[%emt 0:00:11]} exd4 4. Nxd4 {[%emt 0:00:01]} Nf6 {[%emt 0:00:
02]} 5. Nc3 {[%emt 0:00:01]} Be7 {[%emt 0:00:01]} 6. Qf3 {[%emt 0:00:16]} O-O {
[%emt 0:00:23]} 7. Bd3 {[%emt 0:00:06]} Re8 {[%emt 0:00:19]} 8. O-O {[%emt 0:
00:05]} c6 {[%emt 0:01:15]} 9. h3 {[%emt 0:00:48]} Bf8 {[%emt 0:01:00]} 10. Bg5
{[%emt 0:00:18]} Nbd7 {[%emt 0:00:01]} 11. Qg3 {[%emt 0:01:07]} Ne5 {[%emt 0:
01:00]} 12. Rae1 {[%emt 0:01:03]} Be7 {[%emt 0:02:36]} 13. Bc1 {[%emt 0:00:53]}
Bf8 {[%emt 0:00:27]} 14. Bg5 {[%emt 0:00:55]} Be7 {[%emt 0:00:59]} 15. Qe3 {
[%emt 0:02:09]} h6 {[%emt 0:01:14]} 16. Bh4 {[%emt 0:00:52]} Nfg4 {[%emt 0:00:
11]} 17. Bxe7 {[%emt 0:02:19]} Nxe3 {[%emt 0:00:01]} 18. Bxd8 {[%emt 0:00:02]}
Nxf1 {[%emt 0:00:03]} 19. Bc7 {[%emt 0:00:01]} Nd2 {[%emt 0:00:01]} 20. f4 {
[%emt 0:00:27]} c5 {[%emt 0:00:59]} 21. fxe5 {[%emt 0:00:44]} cxd4 {[%emt 0:00:
02]} 22. Nd5 {[%emt 0:00:01]} dxe5 {[%emt 0:01:15]} 23. Ba5 {[%emt 0:00:01]}
Be6 {[%emt 0:00:46]} 24. Bxd2 {[%emt 0:00:03]} Rac8 {[%emt 0:00:10]} 25. c4 {
[%emt 0:00:28]} dxc3 {[%emt 0:00:08]} 26. Bxc3 {[%emt 0:00:02]} f6 {[%emt 0:01:
08]} 27. Bb5 {[%emt 0:00:14]} Bxd5 {[%emt 0:00:31]} 28. Bxe8 {[%emt 0:00:10]}
Bxa2 {[%emt 0:00:04]} 29. Bg6 {[%emt 0:00:24]} Bf7 {[%emt 0:00:08]} 30. Bxf7+ {
[%emt 0:00:08]} Kxf7 {[%emt 0:00:01]} 31. Rd1 {[%emt 0:00:03]} Ke6 {[%emt 0:00:
01]} 32. Kf2 {[%emt 0:00:03]} Rc4 {[%emt 0:00:32]} 33. Ke3 {[%emt 0:00:05]} b5
{[%emt 0:00:07]} 34. Ra1 {[%emt 0:00:54]} b4 {[%emt 0:00:05]} 35. Ra6+ {
[%emt 0:00:02]} Kf7 {[%emt 0:00:01]} 36. Rxa7+ {[%emt 0:00:04]} Kg6 {[%emt 0:
00:01]} 37. Ra4 {[%emt 0:00:09]} 1-0